bitfinex-derivatives/quotes_SOLF0:USTF0_20250310
["timestamp","ask_amount","ask_price","bid_price","bid_amount"]
[1741604729087,7.8247,127.79,127.75,9.9703]
[1741604729288,0.05208388,127.8,127.75,2.1439]
[1741604729494,0.05208388,127.8,127.76,0.05676243]
[1741604729992,0.05208388,127.8,127.69,3.38228155]
[1741604730188,7.8266,127.76,127.72,7.8283]
[1741604730395,2.0492,127.8,127.69,1.9575]
[1741604730701,2.0492,127.8,127.7,1.42495073]
[1741604731201,0.05962856,127.76,127.74,0.05949924]
[1741604731497,0.05962856,127.76,127.69,1.9575]
[1741604731889,0.05962856,127.76,127.64,1.36246183]
[1741604731890,7.8293,127.71,127.67,7.8315]
[1741604732090,51.6128719,127.78,127.65,1.968]
[1741604732287,53.6620719,127.8,127.66,53.03832774]
[1741604732498,53.6620719,127.8,127.67,1.42545584]
[1741604732701,0.0536918,127.73,127.7,0.05418553]
[1741604732891,0.0536918,127.73,127.69,51.6128719]
[1741604733091,53.6620719,127.8,127.66,0.1131]
[1741604733292,0.05029604,127.72,127.7,0.04974557]
[1741604733498,53.6620719,127.8,127.71,7.8293]
[1741604733696,0.05135053,127.72,127.71,7.8293]
[1741604733893,7.8266,127.76,127.71,7.8293]
[1741604734087,0.05472751,127.73,127.7,0.0538458]
[1741604734293,0.05472751,127.73,127.72,7.8286]
[1741604734493,0.05472751,127.73,127.7,0.0538458]
[1741604736199,0.05472751,127.73,127.72,7.8286]
[1741604736595,0.05472751,127.73,127.7,0.0538458]
[1741604736796,7.88282751,127.73,127.7,0.0538458]
[1741604736992,0.05472751,127.73,127.65,1.968]
[1741604737302,7.8302,127.7,127.66,7.832]
[1741604737503,51.6128719,127.72,127.65,1.968]
[1741604737810,2.0229,127.71,127.65,1.968]
[1741604738302,0.05806415,127.69,127.67,0.0564432]
[1741604738507,0.05806415,127.69,127.61,7.8351]
[1741604738508,7.8326,127.66,127.61,7.8351]
[1741604738706,7.8326,127.66,127.59,2.0993]
[1741604738894,7.8333,127.65,127.6,9.26180059]
[1741604739097,2.7593,127.71,127.59,2.0993]
[1741604739304,2.7593,127.71,127.6,1.4261518]
[1741604739494,0.05302078,127.67,127.64,0.04935356]
[1741604740800,0.05302078,127.67,127.6,1.42616145]
[1741604740996,0.05302078,127.67,127.59,2.0993]
[1741604741398,51.6128719,127.69,127.59,2.0993]
[1741604741805,7.8323,127.66,127.61,7.8352]
[1741604742006,0.05454758,127.65,127.63,0.05487538]
[1741604742504,0.05454758,127.65,127.63,7.88877538]
[1741604742708,0.05454758,127.65,127.63,0.05487538]
[1741604743995,7.88754758,127.65,127.63,0.05487538]
[1741604744195,0.05454758,127.65,127.63,0.05487538]
[1741604744601,7.88794758,127.65,127.63,0.05487538]
[1741604744799,0.05454758,127.65,127.63,0.05487538]
[1741604745611,7.88784758,127.65,127.63,0.05487538]
[1741604745907,0.05454758,127.65,127.59,2.0993]
[1741604746106,7.8346,127.63,127.59,9.9356]
[1741604746301,1.9956,127.64,127.59,9.9356]
[1741604746609,1.9956,127.64,127.59,2.0993]
[1741604747008,1.9956,127.64,127.6,0.05105083]
[1741604747310,0.05745407,127.63,127.6,0.05105083]
[1741604748406,0.05745407,127.63,127.6,1.47727406]
[1741604748798,0.05745407,127.63,127.61,7.8348]
[1741604749006,0.05745407,127.63,127.6,0.05105083]
[1741604751511,7.89195407,127.63,127.6,7.88665083]
[1741604751798,0.05745407,127.63,127.6,0.05105083]
[1741604752023,7.89195407,127.63,127.6,7.88665083]
[1741604752505,0.05745407,127.63,127.62,7.8348]
[1741604752699,0.05745407,127.63,127.6,0.05105083]
[1741604753102,7.89195407,127.63,127.6,0.05105083]
[1741604753303,0.05745407,127.63,127.6,0.05105083]
[1741604753512,7.89195407,127.63,127.61,7.8352]
[1741604753814,7.89195407,127.63,127.6,0.05105083]
[1741604754010,0.05745407,127.63,127.6,0.05105083]
[1741604754201,7.8351,127.62,127.6,0.05105083]
[1741604755106,0.05745407,127.63,127.6,0.05105083]
[1741604756608,0.05745407,127.63,127.62,7.8348]
[1741604758515,5.407e-05,127.63,127.62,7.8348]
[1741604758811,11.9879,127.7,127.62,5.34538581]
[1741604759015,4.1578,127.7,127.63,33.22640256]
[1741604759206,4.1578,127.7,127.63,31.80101675]
[1741604759516,4.1578,127.7,127.64,2.0934]
[1741604759717,2.1017,127.7,127.64,2.0934]
[1741604760114,2.1017,127.7,127.69,7.8305]
[1741604760509,0.05070507,127.71,127.66,31.85651774]
[1741604760919,0.05070507,127.71,127.67,1.42231176]
[1741604761117,0.05070507,127.71,127.7,7.8299]
[1741604761419,43.11559549,127.76,127.69,31.80101675]
[1741604761615,43.11559549,127.76,127.75,7.8268]
[1741604762120,43.11559549,127.79,127.73,2.0934]
[1741604762309,43.11559549,127.79,127.77,7.825]
[1741604762619,43.17375452,127.79,127.77,0.05307023]
[1741604763517,43.17375452,127.79,127.73,2.0934]
[1741604763707,31.80101675,127.78,127.68,31.80101675]
[1741604763907,31.80101675,127.78,127.69,1.9618]
[1741604764113,43.11559549,127.79,127.69,1.9618]
[1741604764311,43.11559549,127.79,127.7,53.01271546]
[1741604764504,43.11559549,127.79,127.73,51.59207436]
[1741604764709,0.05285563,127.76,127.73,51.64577081]
[1741604764910,2.0324,127.83,127.73,51.64577081]
[1741604765212,43.11559549,127.85,127.76,51.59207436]
[1741604765518,43.11559549,127.85,127.79,51.59207436]
[1741604765722,43.11559549,127.85,127.8,1.41877395]
[1741604766117,0.05585065,127.84,127.81,0.05249503]
[1741604767013,7.8225,127.82,127.81,0.05249503]
[1741604767515,0.05585065,127.84,127.81,0.05249503]
[1741604769317,7.87755065,127.84,127.81,0.05249503]
[1741604769521,0.05585065,127.84,127.81,0.05249503]
[1741604770319,7.8224,127.83,127.81,0.05249503]
[1741604770511,0.05585065,127.84,127.81,0.05249503]
[1741604771228,0.05585065,127.84,127.77,2.0131]
[1741604771914,7.87755065,127.84,127.8,7.8234]
[1741604772110,0.05585065,127.84,127.77,2.0131]
[1741604772314,0.05585065,127.84,127.81,0.05031428]
[1741604773516,7.8225,127.82,127.81,0.05031428]
[1741604773723,0.05585065,127.84,127.81,0.05031428]
[1741604775125,7.87755065,127.84,127.81,0.05031428]
[1741604775418,0.05585065,127.84,127.81,0.05031428]
[1741604775622,0.05585065,127.84,127.81,113.64238864]
[1741604775824,2.0554,127.89,127.81,113.64238864]
[1741604776024,2.0607,127.9,127.84,51.59207436]
[1741604776225,7.8166,127.92,127.85,2.0118]
[1741604776428,1.9837,127.93,127.85,2.0118]
[1741604776933,1.9837,127.93,127.87,7.8191]
[1741604777128,0.05034196,127.9,127.88,0.05948096]
[1741604777316,7.86844196,127.9,127.88,0.05948096]
[1741604777523,0.05034196,127.9,127.88,0.05948096]
[1741604778022,0.05034196,127.9,127.85,2.0118]
[1741604778327,0.05034196,127.9,127.81,51.59207436]
[1741604778527,53.57577436,127.93,127.82,2.0661]
[1741604779221,0.05813155,127.89,127.86,0.05647091]
[1741604779423,7.8195,127.87,127.86,0.05647091]
[1741604779617,0.05813155,127.89,127.82,2.0661]
[1741604779824,51.59207436,127.9,127.82,2.0661]
[1741604780019,7.8219,127.83,127.82,2.0661]
[1741604780326,2.0157,127.89,127.82,2.0661]
[1741604780632,7.8191,127.88,127.82,2.0661]
[1741604780829,0.05110093,127.87,127.84,51.64426614]
[1741604781226,1.9837,127.93,127.82,64.0661]
[1741604781419,1.9837,127.93,127.84,0.05219178]
[1741604781420,0.05143649,127.87,127.84,0.05219178]
[1741604781624,1.9837,127.93,127.82,2.0661]
[1741604781829,0.05066702,127.86,127.84,0.05219178]
[1741604782031,1.9837,127.93,127.83,1.41646249]
[1741604782221,0.05720487,127.86,127.83,1.41646249]
[1741604782424,1.9837,127.93,127.84,0.05219178]
[1741604782627,0.05965813,127.86,127.83,1.41635229]
[1741604782822,7.8202,127.86,127.83,59.41347436]
[1741604783021,0.05448344,127.86,127.83,51.59207436]
[1741604783232,0.05448344,127.86,127.83,51.64426614]
[1741604783437,0.05448344,127.86,127.85,7.8207]
[1741604783823,0.00098344,127.86,127.85,7.8207]
[1741604784023,1.9837,127.93,127.85,5.33565146]
[1741604784226,1.9837,127.93,127.83,51.59207436]
[1741604784430,1.9837,127.93,127.84,63.41563693]
[1741604784631,7.8189,127.88,127.85,7.8203]
[1741604785028,1.9837,127.93,127.85,0.05515844]
[1741604785338,7.8195,127.87,127.84,7.821]
[1741604785636,0.05227668,127.88,127.84,0.05016424]
[1741604786534,0.05227668,127.88,127.84,1.46551767]
[1741604786738,7.8195,127.87,127.85,7.8204]
[1741604787238,0.05227668,127.88,127.87,7.8195]
[1741604788029,0.05227668,127.88,127.86,7.8197]
[1741604788338,0.05227668,127.88,127.85,31.6894906]
[1741604789131,0.05227668,127.88,127.86,7.8201]
[1741604789433,0.05227668,127.88,127.85,31.6894906]
[1741604790137,7.668e-05,127.88,127.86,1.41433939]
[1741604790638,7.668e-05,127.88,127.87,7.8195]
[1741604791432,7.668e-05,127.88,127.85,39.5098906]
[1741604791631,7.668e-05,127.88,127.84,0.05016424]
[1741604791837,7.668e-05,127.88,127.84,1.46598853]
[1741604792339,7.81917668,127.88,127.84,1.46598853]
[1741604792526,7.81917668,127.88,127.85,7.8202]
[1741604792731,7.668e-05,127.88,127.84,0.05016424]
[1741604792938,7.668e-05,127.88,127.86,7.8198]
[1741604793134,7.668e-05,127.88,127.84,0.05016424]
[1741604793439,7.668e-05,127.88,127.84,1.4662289]
[1741604793638,7.668e-05,127.88,127.85,7.8203]
[1741604793943,7.8197,127.87,127.84,0.05016424]
[1741604794237,7.668e-05,127.88,127.85,7.8204]
[1741604794537,7.668e-05,127.88,127.84,0.05016424]
[1741604795941,7.8199,127.87,127.84,7.87096424]
[1741604796142,7.668e-05,127.88,127.84,0.05016424]
[1741604796533,7.81897668,127.88,127.86,7.8201]
[1741604796728,7.668e-05,127.88,127.86,7.8201]
[1741604796929,7.668e-05,127.88,127.84,31.73965484]
[1741604797130,7.668e-05,127.88,127.87,7.8195]
[1741604798837,7.668e-05,127.88,127.84,31.73965484]
[1741604799346,7.668e-05,127.88,127.85,1.41608029]
[1741604800345,7.668e-05,127.88,127.87,7.8195]
[1741604800550,7.668e-05,127.88,127.84,31.73965484]
[1741604800847,7.668e-05,127.88,127.86,7.82]
[1741604801252,7.668e-05,127.88,127.84,31.73965484]
[1741604801550,7.668e-05,127.88,127.87,7.8195]
[1741604801948,7.668e-05,127.88,127.84,31.73965484]
[1741604803447,7.668e-05,127.88,127.84,0.05016424]
[1741604803850,7.668e-05,127.88,127.85,7.8204]
[1741604804346,7.668e-05,127.88,127.85,7.8202]
[1741604804545,7.668e-05,127.88,127.84,0.05016424]
[1741604804847,7.668e-05,127.88,127.87,7.8195]
[1741604811946,42.59071772,127.92,127.91,7.817]
[1741604814164,0.05898366,127.93,127.92,7.8164]
[1741604815358,0.05898366,127.93,127.91,7.8167]
[1741604816053,0.05898366,127.93,127.9,0.05346645]
[1741604818363,0.05898366,127.93,127.91,31.6894906]
[1741604818559,0.05898366,127.93,127.92,7.8164]
[1741604819365,10.64767943,127.97,127.91,31.6894906]
[1741604819664,18.46127943,127.97,127.91,31.6894906]
[1741604819857,18.46127943,127.97,127.94,7.8148]
[1741604820255,10.64767943,127.97,127.91,31.6894906]
[1741604820459,0.05221772,127.95,127.91,31.6894906]
[1741604821052,0.05221772,127.95,127.92,0.05482706]
[1741604821458,0.05221772,127.95,127.94,7.8152]
[1741604821662,0.05221772,127.95,127.92,0.05482706]
[1741604821953,0.05221772,127.95,127.93,7.8155]
[1741604822166,0.05221772,127.95,127.92,0.05482706]
[1741604822566,7.8158,127.93,127.92,0.05482706]
[1741604823170,4.1779,127.94,127.88,33.7771906]
[1741604823760,4.1779,127.94,127.88,41.5956906]
[1741604823959,4.1779,127.94,127.88,33.7771906]
[1741604824154,7.8182,127.89,127.86,7.8197]
[1741604824354,7.8182,127.89,127.86,7.87715227]
[1741604824563,7.87066366,127.89,127.86,7.87715227]
[1741604824862,7.8191,127.88,127.86,0.05745227]
[1741604825060,0.05246366,127.89,127.86,0.05745227]
[1741604825469,0.05246366,127.89,127.88,7.8188]
[1741604825663,0.05246366,127.89,127.86,0.05745227]
[1741604825873,7.87096366,127.89,127.86,0.05745227]
[1741604826061,0.05246366,127.89,127.86,31.74694287]
[1741604826673,0.05246366,127.89,127.86,0.05745227]
[1741604827066,7.87106366,127.89,127.86,0.05745227]
[1741604827363,0.05246366,127.89,127.86,0.05745227]
[1741604827562,7.8195,127.87,127.86,0.05745227]
[1741604828168,0.05246366,127.89,127.86,7.87745227]
[1741604828962,0.05246366,127.89,127.86,0.05745227]
[1741604829861,7.8191,127.88,127.86,0.05745227]
[1741604830666,7.87106366,127.89,127.86,0.05745227]
[1741604831065,0.05246366,127.89,127.86,0.05745227]
[1741604831261,7.8195,127.87,127.86,0.05745227]
[1741604831465,2.1301,127.88,127.86,0.05745227]
[1741604832173,2.1301,127.88,127.84,1.4179048]
[1741604832174,2.1301,127.88,127.83,2.0874]
[1741604832360,7.8211,127.85,127.8,31.6894906]
[1741604832564,2.0156,127.87,127.78,2.1318]
[1741604832765,2.7442,127.87,127.78,2.1318]
[1741604833375,7.8223,127.83,127.81,0.06020855]
[1741604833669,0.05187441,127.84,127.81,0.06020855]
[1741604833873,7.8234,127.81,127.78,2.1318]
[1741604834475,2.7442,127.87,127.78,2.1318]
[1741604834786,31.6894906,127.85,127.74,31.6894906]
[1741604835077,0.05422412,127.84,127.75,7.8266]
[1741604835269,31.6894906,127.85,127.74,31.6894906]
[1741604835474,7.8229,127.82,127.77,7.8251]
[1741604835883,0.7286,127.87,127.74,31.6894906]
[1741604836071,0.7286,127.87,127.77,31.6894906]
[1741604836273,0.0589334,127.82,127.77,31.6894906]
[1741604836470,0.0589334,127.82,127.74,31.6894906]
[1741604836674,7.8238,127.8,127.76,7.8258]
[1741604836975,31.6894906,127.86,127.74,31.6894906]
[1741604836976,0.05628652,127.79,127.74,31.6894906]
[1741604837168,7.8253,127.78,127.74,39.5168906]
[1741604837374,0.05628652,127.79,127.74,7.8274]
[1741604837774,7.8253,127.78,127.74,7.8274]
[1741604837975,9.8553,127.78,127.74,7.8274]
[1741604838273,9.8553,127.78,127.75,7.8268]
[1741604838874,9.8553,127.78,127.74,7.8271]
[1741604839068,2.03,127.78,127.73,2.1318]
[1741604839271,2.03,127.78,127.73,33.8212906]
[1741604839472,2.03,127.78,127.76,7.8258]
[1741604839870,2.03,127.78,127.73,33.8212906]
[1741604840171,2.03,127.78,127.77,7.8256]
[1741604840373,0.05628652,127.79,127.73,33.8212906]
[1741604840678,0.05628652,127.79,127.77,7.825]
[1741604840881,0.05628652,127.79,127.73,33.8212906]
[1741604841083,0.05628652,127.79,127.73,2.1318]
[1741604841276,0.05628652,127.79,127.73,7.8278]
[1741604841476,7.8266,127.76,127.73,7.8278]
[1741604841977,0.05392386,127.76,127.69,35.02923245]
[1741604842284,0.05392386,127.76,127.74,31.6894906]
[1741604842480,0.05392386,127.76,127.75,7.8268]
[1741604842779,0.05392386,127.76,127.72,31.6894906]
[1741604842977,0.05392386,127.76,127.73,7.8276]
[1741604843583,7.88012386,127.76,127.73,7.8276]
[1741604843979,7.88012386,127.76,127.69,1.9776]
[1741604844188,0.05392386,127.76,127.7,33.11293506]
[1741604844484,0.05392386,127.76,127.7,31.6894906]
[1741604845481,0.05392386,127.76,127.74,7.8271]
[1741604845786,0.05392386,127.76,127.7,31.6894906]
[1741604845975,0.05392386,127.76,127.71,1.42247013]
[1741604846485,0.05392386,127.76,127.75,7.8268]
[1741604847079,2.0241,127.81,127.8,7.8237]
[1741604847290,42.59071772,127.88,127.8,7.8237]
[1741604847476,7.8222,127.83,127.77,31.6894906]
[1741604848086,3.9665,127.85,127.77,31.6894906]
[1741604848287,3.9665,127.85,127.8,31.6894906]
[1741604848481,0.0520865,127.82,127.8,31.6894906]
[1741604848884,0.0520865,127.82,127.81,7.8231]
[1741604849273,0.0520865,127.82,127.81,9.8938]
[1741604849485,2.0801,127.88,127.81,3.48969158]
[1741604849686,2.0801,127.88,127.81,2.0707]
[1741604850086,2.0801,127.88,127.85,7.8201]
[1741604850281,2.0801,127.88,127.81,2.0707]
[1741604850680,0.05918028,127.86,127.83,0.04948292]
[1741604850882,0.05918028,127.86,127.78,31.6894906]
[1741604851078,7.8219,127.83,127.79,9.24370323]
[1741604851278,2.0801,127.88,127.78,31.6894906]
[1741604851482,31.6894906,127.87,127.76,33.6520906]
[1741604851684,31.6894906,127.87,127.76,9.7884]
[1741604851882,0.7328,127.86,127.76,1.9626]
[1741604852087,0.05143771,127.83,127.8,0.04932453]
[1741604852286,0.05143771,127.83,127.76,1.9626]
[1741604852790,0.05143771,127.83,127.74,31.6894906]
[1741604852987,31.6894906,127.85,127.72,31.6894906]
[1741604853391,0.05889379,127.8,127.72,31.6894906]
[1741604853690,2.1025,127.82,127.72,31.6894906]
[1741604853882,0.05881576,127.77,127.74,7.827]
[1741604854587,0.05881576,127.77,127.72,31.6894906]
[1741604854801,0.05881576,127.77,127.73,1.42083929]
[1741604855192,0.05881576,127.77,127.74,1.4207598]
[1741604855489,0.05881576,127.77,127.72,31.6894906]
[1741604855687,0.05881576,127.77,127.75,31.6894906]
[1741604855993,0.05881576,127.77,127.76,7.8262]
[1741604856393,0.0046564,127.77,127.76,7.8262]
[1741604856595,0.0046564,127.77,127.76,9.2466814]
[1741604857400,2.1025,127.82,127.76,1.4204814]
[1741604857591,2.0069,127.85,127.77,2.1422]
[1741604857791,4.1141,127.85,127.78,31.6894906]
[1741604857990,2.0069,127.85,127.79,1.42000437]
[1741604858389,7.8216,127.84,127.79,1.42000437]
[1741604858591,0.05094784,127.83,127.81,0.0499873]
[1741604858994,0.05094784,127.83,127.82,7.8225]
[1741604861186,0.05094784,127.83,127.81,0.0499873]
[1741604862098,0.05094784,127.83,127.77,2.1422]
[1741604862309,7.8235,127.81,127.78,7.8248]
[1741604862592,31.74043844,127.83,127.72,31.6894906]
[1741604862800,7.8263,127.76,127.71,2.117]
[1741604862991,7.8263,127.76,127.72,1.42191348]
[1741604863192,0.05355785,127.75,127.72,1.42191348]
[1741604863390,7.8265,127.76,127.73,7.8276]
[1741604863593,0.05547038,127.75,127.71,33.8064906]
[1741604864000,0.7328,127.82,127.74,7.827]
[1741604864298,0.05448593,127.79,127.71,33.8064906]
[1741604864598,0.7328,127.82,127.71,33.8064906]
[1741604864803,0.05880221,127.76,127.72,1.42198819]
[1741604865194,0.05880221,127.76,127.71,2.117]
[1741604865397,7.88520221,127.76,127.71,2.117]
[1741604865697,0.05880221,127.76,127.71,2.117]
[1741604866094,7.8272,127.75,127.72,7.8283]
[1741604866294,0.05880221,127.76,127.71,2.117]
[1741604867902,7.8271,127.75,127.72,7.8281]
[1741604868104,0.05880221,127.76,127.71,2.117]
[1741604868403,7.88510221,127.76,127.73,7.8275]
[1741604868703,0.05880221,127.76,127.71,2.117]
[1741604868904,7.8274,127.75,127.72,7.8283]
[1741604869104,0.05880221,127.76,127.71,2.117]
[1741604869401,7.8274,127.74,127.72,7.8283]
[1741604869600,0.05880221,127.76,127.71,2.117]
[1741604869997,7.8269,127.75,127.72,7.8283]
[1741604870699,7.8269,127.75,127.73,7.828]
[1741604870906,0.05880221,127.76,127.71,2.117]
[1741604872103,7.88530221,127.76,127.71,2.117]
[1741604872304,7.88530221,127.76,127.74,7.8274]
[1741604872505,0.05880221,127.76,127.71,2.117]
[1741604872706,0.05880221,127.76,127.72,1.42363189]
[1741604873008,0.05880221,127.76,127.73,31.6894906]
[1741604873604,0.05880221,127.76,127.74,7.8272]
[1741604874305,7.88530221,127.76,127.73,39.5171906]
[1741604874807,0.05880221,127.76,127.73,31.6894906]
[1741604875004,0.05880221,127.76,127.74,7.8271]
[1741604875803,0.05880221,127.76,127.75,7.8268]
[1741604878608,0.05880221,127.76,127.73,31.6894906]
[1741604878609,7.88500221,127.76,127.73,31.6894906]
[1741604878910,0.05880221,127.76,127.71,2.117]
[1741604879312,0.05880221,127.76,127.71,33.8064906]
[1741604879603,0.05880221,127.76,127.72,1.42434756]
[1741604879810,0.05880221,127.76,127.75,7.8268]
[1741604883114,2.21e-06,127.76,127.75,9.25076463]
[1741604883309,4.2004,127.84,127.75,1.42396463]
[1741604883511,4.2004,127.84,127.77,31.6894906]
[1741604883809,4.2004,127.84,127.78,2.0221]
[1741604884202,7.8228,127.82,127.79,7.8241]
[1741604884511,0.05965698,127.82,127.8,0.05786382]
[1741604884823,0.05965698,127.82,127.8,7.88156382]
[1741604885414,0.05965698,127.82,127.8,0.05786382]
[1741604885809,0.05965698,127.82,127.8,7.88126382]
[1741604886009,0.05965698,127.82,127.8,0.05786382]
[1741604887009,7.88255698,127.82,127.8,0.05786382]
[1741604887207,0.05965698,127.82,127.8,0.05786382]
[1741604887608,7.8231,127.81,127.8,0.05786382]
[1741604890320,7.88245698,127.82,127.8,0.05786382]
[1741604890619,0.05965698,127.82,127.8,0.05786382]
[1741604891119,7.8231,127.81,127.8,0.05786382]
[1741604891914,0.05965698,127.82,127.75,2.0917]
[1741604892113,4.2004,127.84,127.75,2.0917]
[1741604892321,19.83829045,127.83,127.75,9.9182]
[1741604893122,0.05019439,127.8,127.75,9.9182]
[1741604893314,0.05019439,127.8,127.74,7.8271]
[1741604893719,0.05019439,127.8,127.74,7.8273]
[1741604893923,0.05019439,127.8,127.72,19.83829045]
[1741604894114,19.83829045,127.81,127.72,19.83829045]
[1741604894314,0.05812396,127.77,127.75,7.8268]
[1741604894519,0.7316,127.82,127.75,7.8268]
[1741604894719,0.05320424,127.77,127.73,7.8275]
[1741604894923,0.7316,127.82,127.72,19.83829045]
[1741604895220,0.05853977,127.76,127.72,19.83829045]
[1741604895409,0.05853977,127.76,127.74,7.8271]
[1741604895615,0.05853977,127.76,127.7,2.066]
[1741604895816,0.05853977,127.76,127.72,19.83829045]
[1741604896526,7.8271,127.75,127.73,7.8277]
[1741604897812,7.88493977,127.76,127.73,7.8277]
[1741604898016,7.88493977,127.76,127.74,7.8273]
[1741604898319,7.8268,127.75,127.72,19.83829045]
[1741604898619,0.05853977,127.76,127.72,19.83829045]
[1741604899124,0.05853977,127.76,127.75,7.8268]
[1741604899321,0.05853977,127.76,127.74,19.83829045]
[1741604901522,0.05853977,127.76,127.75,7.8268]
[1741604902315,3.977e-05,127.76,127.75,7.8268]
[1741604902626,7.8233,127.81,127.74,39.6765809]
[1741604902824,4.2004,127.84,127.77,19.83829045]
[1741604903025,2.0627,127.84,127.79,19.83829045]
[1741604903719,0.05002085,127.83,127.8,0.05614743]
[1741604904025,7.87222085,127.83,127.8,0.05614743]
[1741604904625,7.8231,127.81,127.8,0.05614743]
[1741604907620,7.8262,127.77,127.73,19.83829045]
[1741604908018,7.8262,127.77,127.74,7.8271]
[1741604908224,7.8262,127.77,127.73,19.83829045]
[1741604908424,20.56939045,127.83,127.73,19.83829045]
[1741604908631,20.56939045,127.83,127.74,7.8271]
[1741604908828,0.05824635,127.79,127.74,7.8271]
[1741604909021,7.826,127.77,127.74,7.8271]
[1741604909221,0.05824635,127.79,127.74,7.8271]
[1741604909431,7.8261,127.77,127.74,7.8271]
[1741604909633,0.05824635,127.79,127.74,7.8271]
[1741604909823,0.05824635,127.79,127.73,19.83829045]
[1741604910018,7.8262,127.76,127.74,7.8271]
[1741604910424,0.05147088,127.76,127.73,19.83829045]
[1741604910627,0.05147088,127.76,127.75,7.8268]
[1741604911217,0.05147088,127.76,127.75,27.66509045]
[1741604913831,44.52541772,127.83,127.75,19.83829045]
[1741604914134,44.52541772,127.83,127.78,19.83829045]
[1741604914135,1.9347,127.83,127.78,19.83829045]
[1741604914532,2.0627,127.84,127.78,19.83829045]
[1741604914731,2.0627,127.84,127.8,19.83829045]
[1741604914924,0.05846147,127.82,127.8,19.89611802]
[1741604915232,7.821,127.85,127.82,7.822]
[1741604915533,7.87269484,127.85,127.8,19.89611802]
[1741604915834,7.87269484,127.85,127.82,7.8219]
[1741604916131,7.87269484,127.85,127.8,19.89611802]
[1741604916332,0.05169484,127.85,127.8,31.76277793]
[1741604916521,0.05169484,127.85,127.82,31.70495036]
[1741604916727,206.6448742,127.9,127.8,0.05782757]
[1741604916728,42.59071772,127.91,127.87,7.8191]
[1741604916930,42.59071772,127.91,127.84,31.70495036]
[1741604917323,42.59071772,127.91,127.86,31.70495036]
[1741604918028,0.05049593,127.9,127.87,0.05694689]
[1741604918230,0.05049593,127.9,127.88,31.70495036]
[1741604918529,0.05049593,127.9,127.89,9.8764]
[1741604918931,0.05049593,127.9,127.89,2.0582]
[1741604920934,0.05049593,127.9,127.89,9.8764]
[1741604922827,2.0378,127.96,127.91,7.8166]
[1741604923027,2.0378,127.96,127.91,39.52155036]
[1741604923226,2.0378,127.96,127.91,31.70495036]
[1741604923726,7.8149,127.95,127.91,31.70495036]
[1741604923931,7.87390858,127.95,127.92,0.05558215]
[1741604924339,74.29566808,128.04,127.94,31.70495036]
[1741604924530,4.0967,128.03,127.95,2.0245]
[1741604924935,4.0967,128.03,127.96,31.70495036]
[1741604925141,4.0967,128.03,127.95,2.0245]
[1741604925344,7.8139,127.97,127.95,2.0245]
[1741604925535,0.05404008,128.0,127.98,3.433e-05]
[1741604925731,35.80165036,128.03,127.9,31.70495036]
[1741604925931,7.8156,127.94,127.91,7.8168]
[1741604926128,31.70495036,127.99,127.88,33.72945036]
[1741604926329,7.8144,127.96,127.88,33.72945036]
[1741604926546,7.8144,127.96,127.91,31.70495036]
[1741604926730,7.8144,127.96,127.91,31.76244957]
[1741604926936,0.05507189,127.93,127.92,7.8161]
[1741604927136,4.0967,128.03,127.91,31.70495036]
[1741604927436,4.0967,128.03,127.94,7.8147]
[1741604927638,4.0967,128.03,127.93,31.70495036]
[1741604927948,4.0967,128.03,127.96,31.70495036]
[1741604928240,0.05520463,128.01,127.98,0.05777731]
[1741604928635,7.86630463,128.01,127.99,7.8121]
[1741604928837,0.05520463,128.01,127.98,0.05777731]
[1741604929235,7.8118,128.0,127.98,0.05777731]
[1741604929541,0.05520463,128.01,127.98,0.05777731]
[1741604929737,7.86660463,128.01,127.98,7.87047731]
[1741604929951,0.05520463,128.01,127.98,0.05777731]
[1741604932052,7.8121,127.99,127.98,0.05777731]
[1741604934149,0.05520463,128.01,127.94,2.0934]
[1741604934349,31.70495036,128.02,127.89,32.46445036]
[1741604934549,31.70495036,128.02,127.9,1.9704]
[1741604935250,7.8155,127.94,127.9,1.9704]
[1741604935445,0.05822286,127.97,127.95,0.05029665]
[1741604935655,7.8156,127.94,127.91,7.8167]
[1741604935853,31.70495036,127.99,127.9,1.9704]
[1741604936154,0.05994117,127.94,127.91,0.05122653]
[1741604936456,0.05994117,127.94,127.9,1.9704]
[1741604936757,7.8161,127.93,127.91,0.05683454]
[1741604936961,0.05994117,127.94,127.91,0.05683454]
[1741604937559,7.87544117,127.94,127.91,7.87353454]
[1741604937857,0.05994117,127.94,127.91,7.87353454]
[1741604938251,0.05994117,127.94,127.91,0.05683454]
[1741604939356,7.8162,127.93,127.91,0.05683454]